bitfinex/quotes_ETHUSD_20220218
["timestamp","ask_amount","ask_price","bid_price","bid_amount"]
[1645190830988,0.00116691,2889.8,2889.3,0.3]
[1645190830989,0.86591,2889.7,2889.3,0.3]
[1645190831193,3.5,2889.6,2888.5,2.5223]
[1645190831385,3.5,2889.6,2888.5,3.38835]
[1645190831386,1.6709,2889.5,2888.5,3.38835]
[1645190831685,0.96160929,2889.4,2888.6,0.85213347]
[1645190831886,4.12233,2890.0,2888.6,0.85213347]
[1645190832088,2.22962,2890.3,2888.6,0.85213347]
[1645190832089,0.0024799,2889.6,2888.6,0.85213347]
[1645190832287,0.0024799,2889.6,2888.7,0.1729]
[1645190832483,0.0024799,2889.6,2888.8,0.86592]
[1645190832891,3.6729,2890.4,2889.5,0.93033745]
[1645190832892,0.86588,2889.8,2889.5,0.93033745]
[1645190833095,0.1729,2890.4,2889.5,1.80513745]
[1645190833290,0.02571763,2890.0,2889.6,0.8655]
[1645190833489,0.02571763,2890.0,2889.6,4.15537]
[1645190833686,0.02571763,2890.0,2889.7,0.6]
[1645190833886,0.02571763,2890.0,2889.7,0.3]
[1645190834088,0.02571763,2890.0,2889.6,3.28987]
[1645190834089,0.02571763,2890.0,2889.6,2.7243]
[1645190834347,0.02571763,2890.0,2888.6,0.25]
[1645190834348,0.00247976,2889.9,2888.6,0.25]
[1645190834540,0.00247976,2889.9,2888.9,0.86585]
[1645190834740,0.00247976,2889.9,2889.2,0.86586]
[1645190835141,0.02571763,2890.0,2889.2,0.86586]
[1645190835546,0.00233655,2889.5,2889.3,1.90349546]
[1645190835851,0.00233655,2889.5,2889.3,1.03774546]
[1645190836310,0.00233655,2889.5,2889.3,1.63774546]
[1645190836342,0.02571763,2890.0,2889.3,1.63774546]
[1645190836545,0.02571763,2890.0,2889.4,0.00386573]
[1645190836746,0.00225285,2889.5,2889.2,0.00386573]
[1645190836943,0.00225285,2889.5,2888.9,0.00386573]
[1645190837642,1.0,2889.7,2888.9,0.00386573]
[1645190837643,0.86602,2889.4,2888.9,0.00386573]
[1645190837841,0.00225293,2889.3,2888.9,0.86979573]
[1645190838087,0.00225293,2889.3,2888.9,1.16979573]
[1645190838283,0.00225293,2889.3,2889.0,0.3]
[1645190838885,0.498,2889.7,2889.0,0.3]
[1645190839186,0.00239637,2889.2,2889.1,0.00386573]
[1645190839386,0.00239637,2889.2,2889.0,0.3]
[1645190839986,0.03467493,2889.9,2889.0,0.3]
[1645190840188,0.03467493,2889.9,2889.3,0.86575]
[1645190840390,0.03467493,2889.9,2889.4,0.00386573]
[1645190840595,0.03467493,2889.9,2889.4,0.30386573]
[1645190841188,0.03467493,2889.9,2889.5,1.14943853]
[1645190841388,0.03467493,2889.9,2889.5,2.01504853]
[1645190841589,0.00247983,2889.8,2889.6,0.3]
[1645190841837,0.00247983,2889.8,2889.6,2.90031573]
[1645190842037,0.00247983,2889.8,2889.7,2.5693]
[1645190842238,0.00247983,2889.8,2889.7,2.8693]
[1645190842438,0.03467493,2889.9,2889.7,2.8693]
[1645190842637,0.00247981,2889.8,2889.7,2.8693]
[1645190843640,0.1729,2891.0,2889.7,2.8693]
[1645190843839,0.1729,2891.0,2890.2,0.86547]
[1645190844039,0.1729,2891.0,2890.2,1.16547]
[1645190844644,3.6729,2891.0,2890.2,1.16547]
[1645190844845,1.0,2890.9,2890.3,1.73088]
[1645190845047,0.00228213,2890.7,2890.3,1.73088]
[1645190845246,0.00228213,2890.7,2890.2,1.48652316]
[1645190846083,0.86551,2890.9,2890.2,1.48652316]
[1645190846084,1.86551,2890.9,2890.2,1.48652316]
[1645190846283,0.00228219,2890.6,2890.2,1.48652316]
[1645190846682,0.00228219,2890.6,2890.2,0.3]
[1645190846987,0.00228219,2890.6,2889.8,0.00386573]
[1645190846988,0.00228219,2890.6,2889.8,0.30386573]
[1645190847283,0.86562,2890.5,2889.9,1.73114]
[1645190847485,0.86791299,2890.5,2890.0,0.86946573]
[1645190847682,0.00229299,2890.5,2890.0,0.86946573]
[1645190847882,0.00229299,2890.5,2890.2,0.97166267]
[1645190848490,1.74168799,2890.8,2890.2,0.97166267]
[1645190848684,0.00229301,2890.5,2890.2,1.83721267]
[1645190849086,0.00229301,2890.5,2890.2,0.97166267]
[1645190849542,1.86557,2890.7,2890.2,0.97166267]
[1645190849750,0.86563,2890.5,2889.8,0.00386573]
[1645190849947,0.86792301,2890.5,2889.8,0.00386573]
[1645190850543,0.86792301,2890.5,2889.8,0.00236401]
[1645190850746,0.86563,2890.5,2890.0,0.87073916]
[1645190850945,2.37557461,2890.6,2890.0,0.87073916]
[1645190851150,0.00229215,2890.3,2890.0,1.17073916]
[1645190852045,1.0,2890.6,2890.0,1.17073916]
[1645190852245,0.00229215,2890.3,2890.0,2.90177916]
[1645190853086,0.00229215,2890.3,2890.0,2.03625916]
[1645190853290,0.01506264,2890.4,2890.0,2.03625916]
[1645190853485,0.00229215,2890.3,2890.0,2.03625916]
[1645190853694,0.00229215,2890.3,2890.0,1.17073916]
[1645190854494,0.01506264,2890.4,2890.0,1.17073916]
[1645190854692,0.00229224,2890.3,2890.0,1.17073916]
[1645190854893,0.00229224,2890.3,2890.0,2.03624916]
[1645190855297,0.00229224,2890.3,2890.1,3.8]
[1645190855699,0.01506264,2890.4,2890.1,0.3]
[1645190855894,0.00229224,2890.3,2890.1,0.3]
[1645190856302,1.54e-06,2890.7,2890.2,1.7305085]
[1645190856502,1.54e-06,2890.7,2890.3,1.90352]
[1645190856747,1.54e-06,2890.7,2890.3,2.79382]
[1645190857143,1.54e-06,2890.7,2890.4,0.86511]
[1645190857346,0.94495758,2891.1,2890.4,0.86511]
[1645190857347,0.94495758,2891.1,2890.6,0.8649558]
[1645190857545,0.94495758,2891.1,2890.7,0.1729]
[1645190858142,0.87757461,2892.0,2890.8,4.0]
[1645190858345,0.87757461,2892.1,2890.9,6.142]
[1645190858552,0.87757461,2892.1,2891.2,0.86498]
[1645190858755,1.29995264,2892.4,2891.3,3.6729]
[1645190858756,0.87757461,2892.4,2891.3,3.6729]
[1645190858957,1.91124205,2892.9,2891.4,0.416]
[1645190858958,0.87757461,2892.8,2891.4,0.416]
[1645190859145,1.29995264,2892.9,2892.8,0.92965138]
[1645190859146,0.87757461,2892.9,2892.8,0.92965138]
[1645190859355,2.71528794,2893.4,2892.8,0.77834175]
[1645190859356,0.87757461,2893.1,2892.8,0.77834175]
[1645190859751,0.87757461,2893.2,2892.8,0.77834175]
[1645190860597,0.87757461,2893.4,2892.8,1.07834175]
[1645190860797,0.00116493,2893.1,2892.9,0.86447]
[1645190861002,0.00116493,2893.1,2892.9,1.72905]
[1645190861197,0.00116493,2893.1,2893.0,0.3]
[1645190861611,0.1728,2893.9,2893.0,0.3]
[1645190861612,0.87757461,2893.7,2893.0,0.3]
[1645190861799,0.87757461,2893.7,2893.4,0.99041965]
[1645190862198,0.87757461,2893.7,2893.4,1.29041965]
[1645190862799,0.87757461,2893.5,2893.1,1.72894]
[1645190862999,0.87757461,2893.6,2892.9,0.3]
[1645190863206,0.88005427,2893.7,2892.9,0.33620781]
[1645190863398,0.88005427,2893.7,2893.0,0.86458]
[1645190863800,0.00247966,2893.7,2893.4,0.88090289]
[1645190864000,0.88005427,2893.7,2893.4,1.18090289]
[1645190864244,0.87757461,2893.8,2893.4,1.18090289]
[1645190864447,0.00247975,2893.5,2893.4,1.18090289]
[1645190864851,0.00247975,2893.5,2892.9,0.03620781]
[1645190865146,0.77124301,2893.2,2892.9,0.03620781]
[1645190865346,2.50101301,2893.2,2892.9,0.03620781]
[1645190865846,1.0,2893.1,2892.9,0.03620781]
[1645190866046,1.86487,2893.1,2892.9,0.03620781]
[1645190866749,1.86727551,2893.1,2892.9,0.03620781]
[1645190867146,2.74485012,2893.1,2892.9,0.03620781]
[1645190867347,1.86727551,2893.1,2892.9,0.03620781]
[1645190867547,2.74485012,2893.1,2892.9,0.03620781]
[1645190867748,2.74244461,2893.1,2892.9,0.03620781]
[1645190867980,2.74485012,2893.1,2892.9,0.03620781]
[1645190868779,0.87757461,2893.0,2892.2,2.5302]
[1645190868983,1.7300915,2892.8,2892.2,2.5302]
[1645190869292,1.29357461,2892.7,2892.2,2.5302]
[1645190869483,1.46637461,2892.7,2892.2,2.5302]
[1645190869683,2.46637461,2892.7,2892.2,2.5302]
[1645190869884,2.0351072,2892.6,2892.2,2.5302]
[1645190870082,0.416,2892.5,2892.2,2.5302]
[1645190870684,0.86742583,2892.6,2892.2,2.5302]
[1645190870884,0.00228583,2892.6,2892.2,2.5302]
[1645190871085,0.00228583,2892.6,2892.2,2.8302]
[1645190871285,0.87757461,2893.1,2892.2,2.8302]
[1645190871489,0.87757461,2893.1,2892.3,1.0024263]
[1645190871490,0.87757461,2892.8,2892.3,1.0024263]
[1645190871732,0.00228585,2892.5,2892.3,1.0024263]
[1645190872534,0.8649372,2892.8,2892.3,1.0024263]
[1645190872733,1.05037461,2892.9,2892.3,1.0024263]
[1645190872734,0.87757461,2892.9,2892.3,1.0024263]
[1645190872931,0.00228585,2892.5,2892.3,1.0024263]
[1645190873131,0.00228585,2892.5,2892.3,1.03650017]
[1645190873832,0.8649,2892.8,2892.3,1.33650017]
[1645190874033,0.00229332,2892.5,2892.3,1.33650017]
[1645190875040,0.8649,2892.8,2892.3,1.33650017]
[1645190875241,0.00229332,2892.5,2892.3,1.33650017]
[1645190875691,0.00229332,2892.5,2892.4,3.5]
[1645190875994,0.00229332,2892.5,2892.4,3.8]
[1645190876287,0.77124301,2893.2,2892.6,0.8646]
[1645190876687,0.77124301,2893.2,2893.1,1.12357193]
[1645190876889,0.77124301,2893.2,2893.1,0.58455622]
[1645190878589,0.77124301,2893.2,2892.3,0.3]
[1645190878790,0.77124301,2893.2,2892.2,3.1302]
[1645190879837,0.86482,2893.1,2892.6,0.85511395]
[1645190880034,0.0022926,2892.8,2892.6,0.85511395]
[1645190880233,0.0022926,2892.8,2892.6,1.15511395]
[1645190880636,0.0022926,2892.8,2892.2,2.5302]
[1645190880840,0.8672026,2892.8,2892.2,2.5302]
[1645190881037,0.86491,2892.8,2892.2,2.5302]
[1645190881235,0.86720263,2892.8,2892.2,2.5302]
[1645190881436,4.36720263,2892.8,2892.2,2.5302]
[1645190881642,1.18101445,2892.5,2891.8,1.12602872]
[1645190881842,1.18101445,2892.5,2890.3,0.01224107]
[1645190881843,0.8652973,2892.1,2890.9,0.1728]
[1645190882038,0.8652973,2892.1,2890.2,2.9255]
[1645190882039,0.5889,2892.0,2890.2,2.9255]
[1645190882246,0.8889,2892.0,2890.2,2.9255]
[1645190882636,0.8889,2892.0,2890.3,0.1729]
[1645190882839,0.8889,2892.0,2891.3,1.03179733]
[1645190882840,1.7306767,2891.7,2891.3,1.03179733]
[1645190883088,2.1466767,2891.7,2891.3,1.03179733]
[1645190883289,3.1466767,2891.7,2891.3,1.03179733]
[1645190883693,0.0022931,2891.6,2891.3,1.03179733]
[1645190884302,0.0022931,2891.6,2891.3,1.33179733]
[1645190884502,0.5889,2892.0,2891.3,1.63179733]
[1645190884503,1.0,2892.0,2891.3,1.63179733]
[1645190884906,7.3,2892.2,2891.3,1.63179733]
[1645190884907,0.00229317,2891.6,2891.3,1.63179733]
[1645190885106,0.00229317,2891.6,2891.3,1.53179733]
[1645190885501,0.00229317,2891.6,2891.3,1.23179733]
[1645190885703,0.86524,2891.7,2891.3,1.23179733]
[1645190886100,0.00229317,2891.6,2891.3,1.23179733]
[1645190887038,0.86524,2891.7,2891.3,1.23179733]
[1645190887237,0.00229317,2891.6,2891.3,1.23179733]
[1645190888242,1.416,2892.0,2891.3,1.23179733]
[1645190888440,0.00229317,2891.6,2891.3,1.23179733]
[1645190888641,0.00229317,2891.6,2891.4,0.0218711]
[1645190889452,1.0,2892.1,2891.4,0.0218711]
[1645190889647,0.416,2892.7,2891.4,0.0218711]
[1645190889648,4.55047461,2892.8,2891.4,0.3218711]
[1645190889844,0.00229315,2891.6,2891.4,0.0218711]
[1645190890493,0.00229315,2891.6,2891.4,3.4817811]
[1645190890693,3.5,2892.7,2891.7,0.86501]
[1645190890892,1.74255701,2892.8,2892.4,0.94778342]
[1645190891097,0.8649824,2892.8,2892.4,0.94778342]
[1645190891494,0.86501,2892.6,2891.8,2.2296]
[1645190891693,0.87757461,2892.8,2891.9,0.86494]
[1645190892192,0.00229272,2892.7,2891.8,1.9296]
[1645190892393,1.05037461,2892.6,2892.3,0.8960301]
[1645190892604,1.05037461,2892.6,2892.3,0.47223372]
[1645190892996,0.87757461,2892.6,2892.3,0.47223372]
[1645190893195,0.00229278,2892.6,2892.3,0.47223372]
[1645190893795,0.87986739,2892.6,2892.3,0.47223372]
[1645190894239,1.74255461,2892.7,2892.3,0.47223372]
[1645190894442,0.00229278,2892.6,2892.3,0.47223372]
[1645190894640,0.00229278,2892.6,2891.8,2.49459]
[1645190894841,0.00229278,2892.6,2891.8,3.95958]
[1645190895440,0.87757461,2892.7,2892.0,0.86491]
[1645190895640,0.00229288,2892.3,2892.1,0.3]
[1645190896242,0.00229288,2892.3,2892.2,0.86488]
[1645190896443,0.00229288,2892.3,2892.1,2.32964]
[1645190896844,8.17757461,2893.0,2892.2,1.85580471]
[1645190896845,0.18024183,2892.9,2892.2,1.85580471]
[1645190897041,0.00229287,2892.3,2892.1,2.32964]
[1645190897247,0.00229287,2892.3,2892.2,1.07921803]
[1645190897641,0.00229287,2892.3,2892.2,1.37921803]
[1645190897846,0.87757461,2892.7,2892.2,1.37921803]
[1645190898081,0.87757461,2892.8,2892.2,1.37921803]
[1645190898385,0.00116578,2892.4,2892.2,1.37921803]
[1645190898983,0.87757461,2892.7,2892.2,1.37921803]
[1645190899186,0.87757461,2892.6,2892.2,1.37921803]
[1645190899390,0.00116578,2892.4,2892.2,1.37921803]
[1645190899588,0.00116578,2892.4,2892.2,1.07921803]
[1645190899790,0.87874039,2892.4,2892.2,1.07921803]
[1645190900188,0.87757461,2892.4,2892.2,1.07921803]
[1645190900592,0.88005728,2892.4,2892.2,1.07921803]
[1645190900797,0.00248267,2892.4,2892.2,1.07921803]
[1645190900996,0.00248267,2892.4,2892.2,1.67921803]
[1645190901200,0.00248267,2892.4,2892.2,1.37921803]
[1645190901394,0.87757461,2892.6,2892.2,1.67921803]
[1645190901596,0.87757461,2892.5,2892.2,1.37921803]
[1645190901847,0.88005728,2892.4,2892.2,1.37921803]
[1645190902039,0.00248267,2892.4,2892.2,1.37921803]
[1645190902640,0.87757461,2892.6,2892.2,1.37921803]
[1645190903047,0.00248267,2892.4,2892.2,1.37921803]
[1645190903843,0.87757461,2892.5,2892.2,2.24407803]
[1645190904043,0.00248267,2892.4,2892.2,2.24407803]
[1645190904443,0.00248267,2892.4,2892.2,1.16486]
[1645190904645,0.00248267,2892.4,2892.2,0.3]
[1645190904646,0.87757461,2892.3,2892.2,0.3]
[1645190905047,2.29995264,2892.5,2891.8,1.9296]
[1645190905247,0.87639395,2892.1,2891.8,1.6296]
[1645190905491,0.87639395,2892.1,2891.4,1.19136144]
[1645190905895,0.87639395,2892.2,2892.0,0.98582833]
[1645190906304,0.87639395,2892.3,2892.0,0.98582833]
[1645190907098,0.87639395,2892.3,2892.0,1.28582833]
[1645190907301,0.87639395,2892.4,2892.0,1.28582833]
[1645190907503,0.87639395,2892.5,2892.0,2.15069833]
[1645190907704,1.73919773,2893.0,2892.0,2.45069833]
[1645190907705,0.00248274,2892.3,2892.0,2.45069833]
[1645190908400,0.03026827,2892.3,2892.0,2.45069833]
[1645190908601,0.02778553,2892.3,2892.0,2.45069833]
[1645190909001,0.03026827,2892.3,2892.0,2.45069833]
[1645190909242,0.03026827,2892.3,2892.1,0.86477]
[1645190909444,0.03026827,2892.3,2892.1,1.16477]
[1645190909848,0.02778553,2892.3,2892.1,4.66477]
[1645190910044,0.03026825,2892.3,2892.2,3.5]
[1645190910648,0.87639395,2892.7,2892.3,0.86458]
[1645190910852,0.87639395,2892.8,2892.4,4.36457]
[1645190911048,0.87639395,2892.8,2892.5,1.48464901]
[1645190911248,2.29995264,2893.1,2892.5,1.78464901]
[1645190911249,0.87639395,2892.9,2892.5,1.78464901]
[1645190911647,0.87639395,2892.9,2892.5,2.64918901]
[1645190911849,0.87639395,2893.0,2892.5,2.64918901]
[1645190912048,0.87639395,2892.9,2892.5,2.64918901]
[1645190912248,0.87639395,2892.9,2892.6,0.86461]
[1645190912449,0.00248249,2892.8,2892.7,0.3]
[1645190912649,0.00248249,2892.8,2892.7,0.6]
[1645190912848,0.00248249,2892.8,2892.6,0.86463]
[1645190913083,0.00248249,2892.8,2892.7,0.6]
[1645190913584,2.64763696,2893.2,2892.7,0.6]
[1645190913784,0.00248249,2892.8,2892.7,0.6]
[1645190914687,2.64763696,2893.2,2893.1,1.13756488]
[1645190915086,1.77124301,2893.2,2893.1,1.13756488]
[1645190915688,2.6472185,2893.2,2893.1,1.43756488]
[1645190917133,1.77124301,2893.2,2893.1,1.43756488]
[1645190917532,2.6472185,2893.2,2893.1,1.43756488]
[1645190918132,1.77124301,2893.2,2893.1,1.43756488]
[1645190918538,1.77124301,2893.2,2893.1,1.46089519]
[1645190919143,0.77124301,2893.2,2893.1,1.76089519]
[1645190921393,0.77124301,2893.2,2893.1,5.26089519]
[1645190921600,0.00248241,2893.3,2893.2,5.0]
[1645190921798,0.1728,2894.3,2893.2,8.8]
[1645190921799,0.87597549,2894.1,2893.2,8.8]
[1645190921994,0.87597549,2894.1,2893.6,0.86423]
[1645190922196,0.87597549,2894.1,2893.7,3.5]
[1645190922395,0.87597549,2894.1,2893.7,0.3]
[1645190922596,0.87597549,2894.2,2893.7,0.3]
[1645190922792,0.87597549,2894.2,2893.8,1.13353036]
[1645190923194,0.87597549,2894.2,2893.8,2.59784036]
[1645190923395,8.59995264,2894.5,2893.9,3.5]
[1645190923396,0.00248204,2894.1,2893.9,3.5]
[1645190923597,0.00248204,2894.1,2893.9,0.864201]
[1645190923798,0.00248204,2894.1,2894.0,0.3]
[1645190924237,0.87597549,2894.6,2894.0,0.3]
[1645190924441,0.87597549,2894.6,2894.0,2.02835]
[1645190924651,0.00248199,2894.2,2894.0,1.16418]
[1645190924844,0.00248199,2894.2,2894.0,1.46418]
[1645190925446,0.87597549,2894.6,2894.0,1.46418]
[1645190925645,0.87597549,2894.5,2894.1,2.05047854]
[1645190925844,0.0011616,2894.2,2894.1,2.35047854]
[1645190926247,0.0011616,2894.2,2894.1,1.48630854]
[1645190926645,0.87597549,2894.7,2894.1,1.48630854]
[1645190927049,0.0011616,2894.3,2894.1,1.48630854]
[1645190927247,1.74160709,2894.3,2894.1,0.80604885]
[1645190927848,1.74044549,2894.3,2893.4,9.0916]
[1645190928090,0.87597549,2894.2,2893.1,3.9567087]
[1645190928293,0.87597549,2894.2,2894.1,0.03399357]
[1645190928492,1.74160609,2894.3,2894.1,0.03399357]
[1645190928890,0.87713609,2894.3,2894.1,0.03399357]
[1645190929093,0.87597549,2894.3,2894.1,0.03399357]
[1645190929492,0.87713609,2894.3,2894.1,0.03399357]
[1645190930094,0.87597549,2894.2,2894.1,0.03399357]
[1645190930502,0.87597549,2894.2,2894.1,9.357e-05]
[1645190930503,1.79795264,2894.2,2894.1,9.357e-05]
[1645190930700,0.6706,2894.2,2894.1,9.357e-05]
[1645190930903,0.00070643,2894.0,2893.1,3.5]
[1645190931101,0.87251741,2893.7,2893.0,1.6014]
[1645190931300,0.498,2893.6,2893.0,1.6014]
[1645190931498,0.86474,2893.5,2893.0,1.6014]
[1645190931749,1.36274,2893.5,2893.1,1.05196592]
[1645190931938,2.36274,2893.5,2892.7,1.2112]
[1645190932143,2.36274,2893.5,2892.6,2.9974]
[1645190932144,0.87251741,2893.3,2892.2,1.6509]
[1645190932351,0.87251741,2892.9,2892.2,1.6509]
[1645190932540,1.30877612,2893.1,2892.2,1.6509]
[1645190932541,1.37051741,2892.8,2892.2,1.6509]
[1645190932740,1.37051741,2892.7,2892.2,1.6509]
[1645190932939,0.498,2892.6,2891.5,4.0023]
[1645190933143,0.498,2892.6,2891.4,0.25]
[1645190933144,0.8651198,2892.4,2891.4,0.25]
[1645190933346,0.87251741,2892.2,2891.2,1.5493]
[1645190933547,0.87251741,2892.0,2890.6,0.25995644]
[1645190933743,1.54341741,2891.9,2890.7,1.5493]
[1645190933943,2.40869741,2891.9,2890.7,1.5493]
[1645190934249,2.40869741,2891.9,2891.0,0.8651]
[1645190934250,0.6709,2891.9,2891.0,0.8651]
[1645190934445,1.498,2891.9,2891.0,0.8651]
[1645190934645,1.0,2892.3,2891.1,3.31347416]
[1645190934843,0.00248707,2892.4,2891.0,2.5951]
[1645190935250,0.87251741,2892.3,2891.1,0.86503]
[1645190935489,0.87251741,2892.3,2891.0,2.03]
[1645190935691,0.87251741,2892.3,2891.0,1.73]
[1645190935890,0.87251741,2892.3,2892.1,1.0015208]
[1645190936089,0.498,2892.2,2892.1,1.0015208]
[1645190938495,0.50797715,2892.2,2892.1,1.0015208]
[1645190939357,0.00997715,2892.2,2892.1,1.3015208]
[1645190939753,0.00997715,2892.2,2892.1,1.6015208]
[1645190939951,0.00997715,2892.2,2892.1,1.3015208]
[1645190940551,0.00997715,2892.2,2892.1,1.0015208]
[1645190941455,0.00997715,2892.2,2892.1,1.6015208]
[1645190942453,0.00997715,2892.2,2892.1,1.3015208]
[1645190942854,0.00997715,2892.2,2892.1,1.6015208]
[1645190943495,0.01596344,2892.2,2892.1,1.6015208]
[1645190946844,0.01596344,2892.2,2892.1,1.0015208]
[1645190947845,0.01596344,2892.2,2892.1,1.3015208]
[1645190948246,0.01596344,2892.2,2892.1,0.3]
[1645190948447,0.01596344,2892.2,2891.6,1.837]
[1645190948646,0.01597228,2892.3,2892.1,0.02253999]
[1645190949451,0.01597228,2892.3,2892.1,1.13519933]
[1645190951392,0.01597228,2892.3,2892.1,1.13415098]
[1645190951792,0.01597228,2892.3,2892.1,1.43415098]
[1645190952993,0.01597228,2892.3,2892.1,1.13415098]
[1645190953392,0.02655514,2892.5,2892.1,1.15151339]
[1645190953593,0.00229254,2892.4,2892.1,0.03885405]
[1645190954236,0.86507,2892.3,2892.1,0.03885405]
[1645190954444,0.02655514,2892.5,2892.1,0.03885405]
[1645190954642,0.02655514,2892.5,2892.1,1.12411301]
[1645190954840,0.00229256,2892.4,2892.1,1.12411301]
[1645190955643,0.02655514,2892.5,2892.1,1.12411301]
[1645190955843,0.00229256,2892.4,2892.1,1.12411301]
[1645190956149,0.00229256,2892.4,2892.1,1.72411301]
[1645190956745,0.00229256,2892.4,2892.2,0.86471]
[1645190956946,0.02655514,2892.5,2892.2,0.86471]
[1645190957146,0.02655514,2892.5,2892.2,1.16471]
[1645190957344,0.00229256,2892.4,2892.2,1.16471]
[1645190958186,0.02655514,2892.5,2892.2,1.16471]
[1645190958386,0.00229257,2892.4,2892.2,1.16471]
[1645190959192,0.02655514,2892.5,2892.2,1.16471]
[1645190959595,0.00229257,2892.4,2892.2,1.16471]
[1645190959796,0.00229257,2892.4,2892.1,1.38525896]
[1645190959994,0.00229257,2892.4,2892.1,1.68525896]
[1645190960594,0.02655514,2892.5,2892.1,1.68525896]
[1645190960800,0.00229255,2892.4,2892.1,1.68525896]
[1645190960998,0.00229255,2892.4,2891.7,0.1728]
[1645190961200,0.00229255,2892.4,2891.6,2.6726]
[1645190961201,0.498,2892.3,2891.6,2.6726]
[1645190961396,0.498,2892.3,2891.6,1.537]
[1645190961595,3.5,2892.2,2891.6,1.537]
[1645190961841,1.498,2892.3,2891.6,1.537]
[1645190962040,2.11973045,2892.1,2891.6,2.48266621]
[1645190962245,0.86516,2892.0,2891.6,2.48266621]
[1645190962641,0.86516,2892.0,2891.6,0.94566621]
[1645190963241,1.86516,2892.0,2891.6,1.24566621]
[1645190963441,1.0,2892.0,2891.6,1.24566621]
[1645190963644,2.79331325,2892.1,2891.6,1.24566621]
[1645190964346,2.79331325,2892.1,2891.6,0.3]
[1645190964546,2.79331325,2892.1,2891.2,1.4615]
[1645190964747,2.79331325,2892.1,2891.2,0.6]
[1645190964949,1.92815325,2892.1,2891.2,0.3]
[1645190965147,1.92815325,2892.1,2891.0,0.3]
[1645190965355,0.92815325,2892.1,2890.9,2.2909]
[1645190965591,1.0,2892.2,2891.6,1.13376693]
[1645190966192,3.998,2892.3,2891.6,1.13376693]
[1645190966391,1.0,2892.2,2891.6,1.03376693]
[1645190966790,1.98571111,2892.2,2891.6,1.03376693]
[1645190967192,2.85086041,2892.2,2891.6,1.03376693]
[1645190967391,3.71599041,2892.2,2891.6,1.03376693]
[1645190967791,3.71599041,2892.2,2890.9,2.2909]
[1645190967792,0.86515,2892.0,2890.9,2.2909]
[1645190968392,0.87662126,2892.0,2890.9,2.2909]
[1645190968592,0.88890565,2892.0,2890.9,2.2909]
[1645190968794,0.88890565,2892.0,2891.3,0.92262269]
[1645190968795,0.94911417,2891.7,2891.3,0.92262269]
[1645190969238,0.88890565,2892.0,2891.3,1.52262269]
[1645190969239,1.75405565,2892.0,2891.3,1.52262269]
[1645190970047,0.02375565,2892.0,2891.3,1.52262269]
[1645190972150,0.02375565,2892.0,2891.8,0.97745338]
[1645190972346,0.02375565,2892.0,2891.8,1.27745338]
[1645190972548,0.02375565,2892.0,2891.8,0.97745338]
[1645190972746,0.02375565,2892.0,2891.8,1.27745338]
[1645190973190,0.02875712,2892.0,2891.8,1.27745338]
[1645190973387,0.03365495,2892.0,2891.8,1.27745338]
[1645190974692,0.03365495,2892.0,2891.8,0.3]
[1645190974896,0.03365495,2892.0,2891.3,0.3]
[1645190974897,0.03365495,2892.0,2891.3,0.6]
[1645190975093,0.03365495,2892.0,2891.3,0.3]
[1645190975292,0.03365495,2892.0,2891.2,0.6]
[1645190975699,0.03365495,2892.0,2891.4,0.86498]
[1645190975893,0.03365495,2892.0,2891.5,1.47264758]
[1645190976094,0.03365495,2892.0,2891.4,2.3298712]
[1645190976296,0.03365495,2892.0,2891.5,1.47261203]
[1645190977350,0.03365495,2892.0,2891.5,3.20233203]
[1645190977548,0.03365495,2892.0,2891.6,0.89617066]
[1645190977747,0.03365495,2892.0,2891.6,3.53361269]
[1645190977953,0.03365495,2892.0,2891.6,2.66878269]
[1645190978153,0.03365495,2892.0,2891.7,1.77261203]
[1645190978356,0.01687683,2892.1,2891.7,1.77261203]
[1645190978553,0.01687683,2892.1,2891.8,1.47261203]
[1645190978753,0.01687683,2892.1,2891.7,0.3]
[1645190978952,0.01687683,2892.1,2891.8,1.47247743]
[1645190979152,0.01687683,2892.1,2891.6,1.49617066]
[1645190979355,0.01687683,2892.1,2891.8,1.16488]
[1645190980493,0.01687683,2892.1,2891.8,0.3]
[1645190980692,0.01687683,2892.1,2891.6,1.49617066]
[1645190980897,0.01687683,2892.1,2891.7,1.47252425]
[1645190981294,0.01687683,2892.1,2891.6,1.49617066]
[1645190981695,0.01687683,2892.1,2891.7,1.47253613]
[1645190982302,0.01687683,2892.1,2891.6,1.49617066]
[1645190982503,0.01687683,2892.1,2891.7,1.47254295]
[1645190983405,0.04411856,2892.1,2891.7,1.47254295]
[1645190983602,0.04411856,2892.1,2891.6,1.49617066]
[1645190984005,0.91663597,2892.1,2891.6,1.49617066]
[1645190984233,0.04411856,2892.1,2891.6,1.49617066]
[1645190984637,0.04411856,2892.1,2891.7,1.47255474]
[1645190985238,0.04411856,2892.1,2891.6,1.49617066]
[1645190986138,0.04411856,2892.1,2891.7,1.47255546]
[1645190986840,0.91663597,2892.1,2891.6,0.89617066]
[1645190987241,0.87251741,2892.0,2891.6,0.89617066]
[1645190987641,0.87251741,2892.0,2891.6,1.19617066]
[1645190987840,0.87251741,2892.0,2891.6,1.49617066]
[1645190988289,0.91663597,2892.1,2891.6,1.49617066]
[1645190989892,0.91663597,2892.1,2891.6,0.6]
[1645190990093,0.91663597,2892.1,2891.6,0.3]
[1645190990393,0.87251741,2892.0,2891.3,0.7728]
[1645190990797,1.13094928,2891.8,2891.3,0.7728]
[1645190991396,1.13094928,2891.8,2891.3,0.4728]
[1645190992046,1.13094928,2891.8,2891.3,0.3]
[1645190992248,0.87251741,2892.0,2891.2,1.6024562]
[1645190992650,0.87251741,2892.0,2891.4,0.86502]
[1645190992853,0.87251741,2892.0,2891.4,1.46502]
[1645190993248,1.97640144,2892.1,2891.4,1.46502]
[1645190993449,1.97640144,2892.1,2891.4,0.6]
[1645190993655,1.16703928,2891.6,2891.4,0.3]
[1645190993867,0.04411856,2892.1,2890.9,1.5181]
[1645190993868,3.5,2891.5,2890.9,1.5181]
[1645190994050,0.87251741,2891.6,2890.9,1.5181]
[1645190994251,1.0,2891.4,2890.9,1.5181]
[1645190994654,0.87251741,2891.5,2890.9,1.5181]
[1645190995053,2.00978013,2891.5,2891.0,1.00019488]
[1645190996097,2.00978013,2891.5,2891.0,1.30019488]
[1645190996301,2.00978013,2891.5,2891.0,1.60019488]
[1645190996797,2.00978013,2891.5,2891.0,0.6]
[1645190997003,2.00978013,2891.5,2891.0,0.3]
[1645190997202,3.00978013,2891.5,2891.0,0.3]
[1645190997399,3.00978013,2891.5,2890.9,2.1181]